bitfinex-derivatives/quotes_ETHF0:USTF0_20251126
["timestamp","ask_amount","ask_price","bid_price","bid_amount"]
[1764116240941,0.47996728,2956.8,2956.0,0.1477]
[1764116240942,0.00276728,2956.8,2956.7,0.4439]
[1764116241141,0.47996728,2956.8,2956.7,0.4439]
[1764116241831,0.00276728,2956.8,2956.7,0.4439]
[1764116244144,0.47996728,2956.8,2956.3,1.22441013]
[1764116244337,0.00276728,2956.8,2956.7,0.4439]
[1764116244538,0.00276728,2956.8,2956.7,1.66831013]
[1764116245545,0.00506841,2957.0,2956.9,0.4439]
[1764116246443,0.00872696,2957.0,2956.9,0.4439]
[1764116247648,0.00872696,2957.0,2956.9,1.66831013]
[1764116247945,0.77482696,2957.0,2956.5,1.22441013]
[1764116248151,0.00872696,2957.0,2956.9,0.4439]
[1764116250644,0.00872696,2957.0,2956.9,1.66831013]
[1764116252344,0.77482696,2957.0,2956.9,0.4439]
[1764116252542,0.00872696,2957.0,2956.9,0.4439]
[1764116252743,0.00872696,2957.0,2956.9,1.66831013]
[1764116254347,0.29762696,2957.0,2956.9,1.66831013]
[1764116254658,0.77482696,2957.0,2956.9,0.4439]
[1764116254846,0.77482696,2957.0,2956.5,1.36931013]
[1764116255046,0.00872696,2957.0,2956.9,0.4439]
[1764116256856,0.77482696,2957.0,2956.5,1.22441013]
[1764116257253,0.2889,2956.5,2956.1,2.44243477]
[1764116257452,0.7661,2956.5,2956.4,0.4439]
[1764116258458,0.90685874,2956.9,2956.8,0.4439]
[1764116259057,1.38405874,2956.9,2956.8,0.4439]
[1764116260759,0.4772,2956.9,2956.8,0.4439]
[1764116261656,0.77482696,2957.0,2956.9,0.4439]
[1764116267259,0.00872696,2957.0,2956.9,0.4439]
[1764116271168,0.75692696,2957.0,2956.9,0.4439]
[1764116271466,0.75692696,2957.0,2956.5,1.36312464]
[1764116271765,1.6637857,2957.0,2956.3,2.60433357]
[1764116272160,1.6637857,2957.0,2956.9,0.4788]
[1764116274166,1.6637857,2957.0,2956.3,2.60433357]
[1764116275864,1.66280896,2957.0,2956.3,2.60433357]
[1764116277265,1.66280896,2957.0,2956.9,0.4788]
[1764116278066,0.91460896,2957.0,2956.9,0.4788]
[1764116280663,0.00872696,2957.0,2956.9,0.4788]
[1764116282275,1.49544498,2957.5,2957.3,0.4788]
[1764116282473,0.90500587,2957.4,2957.3,0.4788]
[1764116283176,0.90810682,2957.4,2957.3,0.4788]
[1764116283873,0.00310095,2957.4,2957.3,0.4788]
[1764116285578,0.45710095,2957.4,2957.3,0.4788]
[1764116285774,0.00310095,2957.4,2957.3,0.4788]
[1764116288577,1.36210682,2957.4,2957.3,0.4788]
[1764116295082,0.4546,2957.3,2957.2,0.8155473]
[1764116295281,1.35928104,2957.3,2957.2,1.2946473]
[1764116295483,0.90778199,2957.4,2957.3,0.4791]
[1764116296388,1.36238199,2957.4,2957.3,0.4791]
[1764116296584,0.00310095,2957.4,2957.3,0.4791]
[1764116296983,0.90789615,2957.4,2957.3,0.4791]
[1764116297786,1.36249615,2957.4,2957.3,0.4791]
[1764116301889,0.90789615,2957.4,2957.3,0.4791]
[1764116303985,0.9047952,2957.9,2957.8,0.4791]
[1764116304285,0.2889,2958.5,2957.8,0.4791]
[1764116304286,1.3593952,2958.3,2958.2,0.4791]
[1764116304876,1.36283139,2958.3,2958.2,0.00316652]
[1764116305283,0.45803619,2958.3,2958.2,0.00316652]
[1764116305480,1.36283139,2958.3,2958.2,0.00316652]
[1764116306384,0.45803619,2958.3,2958.2,0.00316652]
[1764116306785,0.45803619,2958.3,2958.2,0.48226652]
[1764116307289,0.00343619,2958.3,2958.2,0.48226652]
[1764116308090,0.45803619,2958.3,2958.2,0.00316652]
[1764116308788,0.45803619,2958.3,2958.2,0.48226652]
[1764116310189,0.45803619,2958.3,2958.2,0.00316652]
[1764116312689,0.45803619,2958.3,2958.2,0.48226652]
[1764116313288,0.00343619,2958.3,2958.2,0.48226652]
[1764116313587,0.45803619,2958.3,2958.2,0.48226652]
[1764116313886,0.00343619,2958.3,2958.2,0.48226652]
[1764116314490,0.45803619,2958.3,2958.2,0.48226652]
[1764116315792,0.00343619,2958.3,2958.2,0.48226652]
[1764116316095,0.45803619,2958.3,2958.2,0.00316652]
[1764116318191,0.45803619,2958.3,2958.2,3.83916652]
[1764116326099,0.45803619,2958.3,2958.2,4.32876652]
[1764116326300,0.00343619,2958.3,2958.2,4.32876652]
[1764116326800,0.7369,2959.0,2958.9,0.4896]
[1764116326996,0.7369,2959.0,2958.9,1.3051473]
[1764116327897,0.74104144,2959.0,2958.9,1.3051473]
[1764116328297,0.00414144,2959.0,2958.9,1.3051473]
[1764116328500,0.00414144,2959.0,2958.9,1.30414341]
[1764116330593,0.74814144,2959.0,2958.9,1.30414341]
[1764116331700,0.00414144,2959.0,2958.9,1.30414341]
[1764116332202,0.74814144,2959.0,2958.9,0.81454341]
[1764116332698,0.74814144,2959.0,2958.9,1.30414341]
[1764116334605,0.29754144,2959.0,2958.9,1.30414341]
[1764116334804,0.00414144,2959.0,2958.9,1.30414341]
[1764116336807,0.29754144,2959.0,2958.9,1.30414341]
[1764116337602,0.00414144,2959.0,2958.9,1.30414341]
[1764116339000,0.00414144,2959.0,2958.9,5.14014341]
[1764116340309,0.00414144,2959.0,2958.9,5.95468682]
[1764116341107,0.00414144,2959.0,2958.9,5.14014341]
[1764116341908,0.2773,2959.5,2959.4,0.4775]
[1764116341909,0.7527,2959.5,2959.4,0.4775]
[1764116342097,0.7527,2959.5,2959.4,1.29204341]
[1764116343010,0.7568013,2959.5,2959.4,1.29204341]
[1764116344910,0.0041013,2959.5,2959.4,5.12804341]
[1764116345411,0.00506841,2959.7,2959.6,0.4775]
[1764116345612,0.00506841,2959.7,2959.6,5.12804341]
[1764116346415,0.00921954,2959.7,2959.6,5.12804341]
[1764116346913,0.9047952,2960.3,2959.6,5.12804341]
[1764116347113,1.3801952,2960.3,2960.2,0.81454341]
[1764116347414,0.4754,2960.3,2960.2,0.81454341]
[1764116347806,0.2934,2960.5,2960.4,0.4775]
[1764116348112,0.29630255,2960.5,2960.4,1.29549243]
[1764116348515,0.00290255,2960.5,2960.4,1.29549243]
[1764116348924,0.75560255,2960.5,2960.4,1.29549243]
[1764116349308,0.28020255,2960.5,2960.4,1.29549243]
[1764116351216,0.00290255,2960.5,2960.4,1.29549243]
[1764116354418,0.9047952,2961.2,2961.1,0.4532]
[1764116354611,0.7478,2961.5,2961.4,0.4532]
[1764116354813,1.1820952,2962.0,2961.4,1.26774341]
[1764116355013,1.1820952,2962.0,2961.0,1.08224341]
[1764116355014,0.4705,2961.8,2961.7,0.81454341]
[1764116355214,0.4705,2961.6,2961.5,0.81454341]
[1764116355416,0.47426471,2961.6,2961.5,0.81454341]
[1764116355611,0.00376471,2961.6,2961.3,0.81961182]
[1764116355817,0.4705,2961.4,2961.3,0.00506841]
[1764116356316,0.4705,2960.9,2960.1,0.81454341]
[1764116356520,0.4705,2960.9,2960.8,0.4532]
[1764116356816,0.7374,2960.5,2960.4,0.45664902]
[1764116357020,0.2669,2961.0,2960.4,0.45664902]
[1764116357326,0.2669,2961.0,2960.5,0.286]
[1764116357524,0.4705,2960.6,2960.5,0.7392]
[1764116357927,0.2669,2961.0,2960.5,0.7392]
[1764116358631,0.7374,2961.0,2960.9,0.81454341]
[1764116359424,0.4705,2961.0,2960.9,1.26774341]
[1764116359621,1.6421952,2961.5,2961.4,0.4532]
[1764116359824,0.4705,2961.5,2961.4,1.26774341]
[1764116360026,0.4705,2961.3,2961.2,0.81454341]
[1764116361126,0.4705,2960.9,2960.8,0.81454341]
[1764116362129,0.4705,2960.9,2960.8,1.26774341]
[1764116362629,0.2669,2961.5,2960.8,1.26774341]
[1764116362828,0.4705,2961.3,2961.2,0.81454341]
[1764116363828,0.4705,2961.3,2961.2,1.26774341]
[1764116365115,0.47426471,2961.6,2961.5,0.4532]
[1764116365319,0.47426471,2961.6,2961.5,1.26774341]
[1764116365515,0.4705,2961.4,2961.3,1.26774341]
[1764116368726,0.47426471,2961.6,2961.5,0.7392]
[1764116368926,0.00376471,2961.6,2961.5,1.55374341]
[1764116369827,0.47426471,2961.6,2961.5,1.55374341]
[1764116370024,0.7374,2962.5,2962.4,0.4532]
[1764116370230,0.4705,2962.2,2961.5,0.286]
[1764116370435,0.4705,2962.2,2962.1,0.81454341]
[1764116371035,0.47452133,2962.2,2962.1,0.81454341]
[1764116372031,0.47452133,2962.2,2962.1,1.26774341]
[1764116373334,0.00402133,2962.2,2962.1,1.26774341]
[1764116373529,0.0050684,2962.4,2962.3,0.4532]
[1764116373729,0.0050684,2962.4,2962.3,1.26774341]
[1764116374131,0.4755684,2962.4,2962.3,1.26774341]
[1764116374431,0.47905265,2962.4,2962.3,1.26774341]
[1764116374627,0.47905265,2962.4,2962.3,0.81454341]
[1764116375523,0.47905265,2962.4,2962.3,1.26774341]
[1764116375725,0.00855265,2962.4,2962.3,1.26774341]
[1764116375928,0.47905265,2962.4,2962.3,1.26774341]
[1764116377135,0.00855265,2962.4,2962.3,1.26774341]
[1764116378337,1.99850126,2963.6,2963.5,0.4532]
[1764116378529,1.99850126,2963.6,2963.5,1.26774341]
[1764116378729,1.99850126,2963.6,2963.5,1.55374341]
[1764116379125,2.00114085,2963.6,2963.5,1.55771168]
[1764116379332,1.53064085,2963.6,2963.5,1.55771168]
[1764116379537,1.67964498,2964.1,2964.0,0.4532]
[1764116379733,1.20914498,2964.1,2964.0,0.7392]
[1764116379933,1.47604498,2964.5,2964.1,0.4532]
[1764116380128,1.20914498,2964.5,2964.4,1.26774341]
[1764116380335,1.81701487,2964.7,2964.4,1.26774341]
[1764116380336,0.4705,2964.7,2964.6,0.4532]
[1764116380530,0.2669,2965.0,2964.6,0.4532]
[1764116380734,0.00331941,2964.7,2964.6,0.4532]
[1764116381035,0.47381941,2964.7,2964.6,0.4532]
[1764116381240,0.4705,2964.3,2964.2,0.4532]
[1764116381742,0.47171941,2964.7,2964.6,0.4514]
[1764116381937,0.47171941,2964.7,2964.1,1.21735067]
[1764116383441,0.4684,2963.9,2963.8,0.45646841]
[1764116383835,0.4684,2963.9,2963.8,0.00506841]
[1764116384239,0.4684,2964.0,2963.9,0.4514]
[1764116384543,0.46304,2964.5,2963.8,1.67381908]
[1764116384744,0.4684,2963.9,2963.8,1.67381908]
[1764116386840,0.46304,2964.5,2963.8,1.67381908]
[1764116388549,0.4684,2963.9,2963.8,0.45646841]
[1764116389041,0.46304,2964.5,2963.8,0.45646841]
[1764116389347,0.90231941,2964.7,2964.4,0.4514]
[1764116389538,0.90231941,2964.7,2964.6,0.4514]
[1764116389740,0.4684,2964.6,2964.0,0.277]
[1764116389940,0.2943,2964.5,2964.0,0.277]
[1764116390443,0.2943,2964.5,2963.8,0.45646841]
[1764116390444,0.4684,2963.9,2963.8,0.45646841]
[1764116390640,0.2943,2964.5,2963.8,0.45646841]
[1764116390848,0.4684,2963.9,2963.8,0.45646841]
[1764116391643,0.4684,2963.9,2963.8,0.00506841]
[1764116391845,0.4684,2963.9,2963.8,0.45646841]
[1764116395755,0.16874,2964.4,2963.8,0.45646841]
[1764116397445,0.4684,2963.9,2963.8,0.45646841]
[1764116398347,0.16874,2964.4,2963.8,0.45646841]
[1764116399053,0.63714,2964.4,2964.3,0.4514]
[1764116399249,1.68086439,2964.7,2964.6,0.4514]
[1764116399454,0.47171941,2964.7,2964.6,0.4514]
[1764116400645,1.20914498,2965.4,2965.3,0.4518]
[1764116400858,0.4547,2965.5,2965.4,0.4518]
[1764116401045,0.4547,2965.5,2965.4,1.26335463]
[1764116401247,0.4547,2965.5,2965.2,0.00505978]
[1764116401550,0.4547,2965.5,2963.7,0.81155463]
[1764116401551,0.4547,2964.1,2963.7,0.81155463]
[1764116401753,0.4547,2963.8,2963.7,1.26335463]
[1764116402057,0.45809619,2964.1,2964.0,0.7341]
[1764116402348,0.00339619,2964.1,2964.0,2.35720926]
[1764116402548,0.4547,2964.6,2964.5,0.4518]
[1764116402741,0.2711,2964.5,2964.0,0.2823]
[1764116403450,0.27379382,2964.5,2964.0,0.2823]
[1764116403962,0.27379382,2964.5,2963.5,0.28626827]
[1764116403963,0.4547,2963.6,2963.5,0.00396827]
[1764116404455,1.65655408,2963.6,2963.5,0.00396827]
[1764116405255,0.4547,2963.6,2963.5,0.00396827]
[1764116406352,2.27171487,2963.6,2963.5,0.00396827]
[1764116406549,0.00505978,2963.8,2962.0,0.2823]
[1764116406550,0.16881,2963.3,2962.0,0.2823]
[1764116406756,0.4547,2962.6,2962.5,0.7341]
[1764116406957,1.33733573,2963.0,2962.5,0.7341]
[1764116407150,1.20343573,2963.2,2963.1,0.4518]
[1764116407350,1.20343573,2963.2,2963.0,0.2823]
[1764116407351,2.25985359,2963.3,2963.2,0.4518]
[1764116407560,2.25985359,2963.3,2963.2,0.45496145]
[1764116407754,0.4547,2963.3,2963.2,0.45496145]
[1764116408355,2.26013811,2963.3,2963.2,0.45496145]
[1764116408861,1.20374174,2963.4,2963.3,0.4518]
[1764116409062,1.20374174,2963.7,2963.6,0.4518]
[1764116409764,0.4547,2963.6,2963.5,0.2823]
[1764116409962,1.20374174,2963.7,2963.6,0.4518]
[1764116410160,1.20880152,2963.8,2963.7,0.4518]
[1764116410763,1.66350152,2963.8,2963.5,0.2823]
[1764116411062,1.20880152,2963.8,2963.7,0.4518]
[1764116411956,1.69980152,2963.8,2963.7,0.4564]
[1764116412155,0.49605978,2963.8,2963.7,0.4564]
[1764116412864,1.69980152,2963.8,2963.7,0.4564]
[1764116413162,0.491,2963.6,2963.5,0.2823]
[1764116413363,1.69980152,2963.8,2963.7,0.4564]
[1764116414061,0.49605978,2963.8,2963.7,0.4564]
[1764116414268,0.00505978,2963.8,2963.7,0.4564]
[1764116415767,0.49605978,2963.8,2963.7,0.4564]
[1764116416260,0.00505978,2963.8,2963.7,0.4564]
[1764116416473,0.2793,2965.5,2964.7,0.16872]
[1764116416655,0.2793,2965.5,2965.2,1.37971261]
[1764116417171,0.2793,2965.5,2965.3,1.21802464]
[1764116417369,0.00505978,2965.7,2965.3,0.00391083]
[1764116417562,0.1339,2966.5,2965.6,0.90571903]
[1764116417871,0.1339,2966.5,2965.7,1.37971261]
[1764116418365,0.28305173,2966.0,2965.7,1.37971261]
[1764116418568,0.2449171,2966.0,2965.7,1.37971261]
[1764116418966,0.1339,2966.5,2965.7,1.37971261]
[1764116419867,0.13661535,2966.5,2965.7,1.37971261]
[1764116420060,0.2793,2966.0,2965.7,1.37971261]
[1764116421465,0.13661535,2966.5,2965.7,1.37971261]
[1764116422369,1.65901261,2968.0,2965.3,0.00391083]
[1764116422370,12.152,2970.2,2968.1,0.0008]
[1764116422573,0.2793,2972.0,2970.1,1.37971261]
[1764116422866,0.2793,2972.0,2971.3,1.37971261]
[1764116423265,0.2793,2972.0,2971.6,0.89092352]
[1764116423467,0.28204662,2972.0,2971.8,0.89092352]
[1764116423766,0.28204662,2972.0,2971.9,0.9967994]
[1764116423978,0.16822,2973.6,2971.9,0.9967994]
[1764116424167,0.16822,2973.6,2972.1,0.89057015]
[1764116424360,0.16822,2973.6,2972.4,0.00505093]
[1764116424361,0.2793,2973.0,2972.4,0.00505093]
[1764116424564,0.2793,2973.0,2971.9,0.89057015]
[1764116424565,0.2793,2972.4,2971.9,0.89057015]
[1764116424869,0.2793,2972.4,2971.6,0.0033792]
[1764116424870,0.28230271,2972.4,2971.7,1.37971261]
[1764116425056,0.2793,2973.0,2971.7,1.37971261]
[1764116425462,0.00502138,2972.6,2972.1,0.00505093]
[1764116425957,0.32545529,2972.4,2972.1,0.00505093]
[1764116426162,0.32782349,2972.4,2972.1,0.00505093]
[1764116426357,0.04852349,2972.4,2972.1,0.00505093]
[1764116426874,0.04615529,2972.3,2972.1,0.00505093]
[1764116427172,0.491,2972.2,2972.1,0.00505093]
[1764116427359,0.491,2971.7,2971.6,0.0033792]
[1764116427564,0.491,2971.7,2970.8,1.37971261]
[1764116427864,0.2793,2971.8,2971.3,1.37971261]
[1764116428064,0.2793,2971.8,2971.2,1.37971261]
[1764116428270,0.2816682,2972.4,2971.2,1.60431261]
[1764116428567,0.2816682,2972.4,2971.5,0.00505093]
[1764116429268,0.2816682,2972.4,2971.2,0.00256706]
[1764116429269,0.491,2971.3,2971.2,0.00256706]
[1764116433264,0.491,2971.1,2970.1,1.37971261]
[1764116433469,0.491,2971.1,2969.3,1.37971261]
[1764116433470,0.16838,2970.9,2969.3,1.37971261]
[1764116433666,0.2793,2971.2,2970.0,0.4564]
[1764116433667,0.0461541,2970.1,2970.0,0.4564]
[1764116433869,0.2793,2971.2,2970.0,0.681]
[1764116434176,0.28247826,2971.2,2970.5,1.37971261]
[1764116434374,0.00505093,2971.1,2970.6,0.00505093]
[1764116435078,0.491,2970.7,2970.6,0.00505093]
[1764116436373,0.491,2970.7,2970.0,1.38348673]
[1764116436674,0.491,2970.1,2970.0,0.00377412]
[1764116437675,0.491,2969.9,2969.8,0.00505093]
[1764116437973,0.491,2969.9,2968.5,1.37971261]
[1764116438674,0.491,2969.9,2968.5,1.38370522]
[1764116438872,0.2793,2970.0,2968.5,1.38370522]
[1764116438873,0.2793,2969.4,2968.9,0.00339682]
[1764116439373,0.491,2969.0,2968.9,0.00339682]
[1764116439574,0.00318631,2969.0,2968.9,0.00339682]
[1764116440283,0.49418631,2969.0,2968.9,0.00339682]
[1764116440478,0.491,2968.6,2968.5,0.00399261]
[1764116441278,0.00318631,2969.0,2968.5,0.46039261]
[1764116443284,0.4923,2968.7,2968.6,0.98305041]
[1764116443478,0.4923,2968.6,2968.5,0.00399261]
[1764116444378,0.3328,2968.8,2968.5,0.47259261]
[1764116444570,0.00318631,2969.0,2968.5,0.47259261]
[1764116445183,0.4923,2968.6,2968.5,0.00399261]
[1764116445373,0.4923,2968.6,2968.5,0.97243836]
[1764116447986,0.00318631,2969.0,2968.5,1.86300851]
[1764116448182,0.00318631,2969.0,2968.6,1.8590159]
[1764116448379,0.00318631,2969.0,2968.7,1.8590159]
[1764116448685,0.00318631,2969.0,2968.9,0.4686]
[1764116448986,0.00318631,2969.0,2968.9,1.43704575]
[1764116449285,0.00318631,2969.0,2968.9,0.96844575]
[1764116449286,0.82828631,2969.0,2968.9,0.96844575]
[1764116449583,0.00318631,2969.0,2968.9,1.8590159]
[1764116450277,0.00318631,2969.0,2968.9,0.96844575]
[1764116450785,0.82828631,2969.0,2968.9,0.96844575]
[1764116451289,0.82828631,2969.0,2968.9,2.16816561]
[1764116452281,0.82828631,2969.0,2968.9,0.96844575]
[1764116453681,0.82828631,2969.0,2968.9,1.86607591]
[1764116453887,0.82828631,2969.0,2968.9,1.86553911]
[1764116454284,0.82828631,2969.0,2968.9,0.96844575]
[1764116455283,0.99676631,2969.0,2968.9,0.96844575]
[1764116455488,0.4923,2968.7,2968.6,1.19650457]
[1764116456386,0.4923,2968.6,2968.5,1.20280127]
[1764116456691,0.4923,2968.6,2968.5,0.00399261]
[1764116456890,0.4923,2968.3,2967.7,3.61321478]
[1764116457387,0.4923,2968.3,2967.2,3.02440081]
[1764116457388,0.16849,2968.8,2968.2,0.4686]
[1764116457586,0.4923,2968.6,2968.5,0.899832]
[1764116457788,0.4923,2968.6,2968.1,1.21377506]
[1764116457989,0.4923,2968.6,2968.1,1.21726014]
[1764116458190,0.4923,2968.6,2968.5,0.89977162]
[1764116458491,0.4923,2968.6,2968.1,1.21726014]
[1764116458687,0.2758,2968.5,2968.1,1.21726014]
[1764116458991,0.2758,2968.5,2968.1,0.47208508]
[1764116459186,0.16849,2968.8,2968.1,0.47208508]
[1764116459391,0.66079,2968.8,2968.7,0.9009051]
[1764116459890,0.66079,2968.8,2968.1,0.00348508]
[1764116460285,0.1685,2968.7,2968.1,0.00348508]
[1764116460482,0.1685,2968.7,2968.1,0.56218508]
[1764116460682,0.33598631,2969.0,2968.6,0.5587]
[1764116461386,0.00318631,2969.0,2968.6,0.5587]
[1764116461688,0.16844,2969.8,2969.0,0.3338]
[1764116462082,0.47955,2969.5,2968.9,1.21377506]
[1764116462284,0.47955,2969.5,2968.5,3.94701478]
[1764116462788,0.00505093,2969.3,2968.7,0.00505093]
[1764116464294,0.00505093,2969.3,2968.7,2.40449065]
[1764116464498,0.00505093,2969.3,2969.2,0.5587]
[1764116466089,0.58655093,2969.3,2968.9,2.39943972]
[1764116466290,0.58655093,2969.3,2969.0,2.39943972]
[1764116466493,0.58655093,2969.3,2968.9,2.39943972]
[1764116467392,0.58655093,2969.3,2969.0,0.89510197]
[1764116467695,0.58655093,2969.3,2969.1,0.89510197]
[1764116467696,0.5815,2969.2,2969.1,0.89510197]
[1764116469197,0.5815,2968.8,2968.7,0.00505093]
[1764116469694,0.5815,2968.8,2968.1,2.4029248]
[1764116469695,0.5815,2968.2,2968.1,0.00348508]
[1764116470001,0.3431,2968.5,2968.1,0.56218508]
[1764116470599,0.5815,2968.2,2968.1,0.00348508]
[1764116470903,0.75003,2968.2,2967.4,3.61321478]
[1764116471101,0.5815,2968.2,2967.1,2.39943972]
[1764116471294,0.5815,2968.2,2967.0,3.94701478]
[1764116471995,0.5815,2968.2,2967.0,3.95015383]
[1764116472399,0.5815,2968.2,2967.0,1.55071411]
[1764116472601,0.3275,2968.0,2967.0,1.55071411]
[1764116472806,0.00505093,2967.8,2967.0,1.55071411]
[1764116473393,0.17360093,2967.8,2967.0,0.33693905]
[1764116474596,0.17360093,2967.8,2967.0,0.00313905]
[1764116474798,0.00505093,2967.8,2967.7,0.6048]
[1764116477501,0.59655093,2967.8,2967.5,0.3608]
[1764116478404,0.59655093,2967.8,2967.3,1.21377506]
[1764116479099,0.59655093,2967.8,2967.0,0.36393905]
[1764116479300,0.3448,2967.5,2967.0,0.00313905]
[1764116479696,0.3448,2967.5,2967.0,0.36393905]
[1764116481105,0.3448,2967.5,2967.1,0.86927935]
[1764116481307,0.3448,2967.5,2967.2,0.86927935]
[1764116481508,0.3448,2967.5,2967.3,0.86927935]
[1764116481509,0.5915,2967.4,2967.3,0.86927935]
[1764116481707,0.5956718,2967.4,2967.3,0.86927935]
[1764116482509,0.0041718,2967.4,2967.3,1.47407935]
[1764116483802,0.05038144,2967.4,2967.3,1.47407935]
[1764116486412,0.05038144,2967.4,2967.3,2.68785441]
[1764116487315,0.05038144,2967.4,2967.3,2.68701909]
[1764116487513,0.64188144,2967.4,2967.3,0.86844403]
[1764116487814,0.05038144,2967.4,2967.3,1.47324403]
[1764116488314,0.05038144,2967.4,2967.3,0.6048]
[1764116489507,0.05038144,2967.4,2967.3,1.47321094]
[1764116490108,0.09659108,2967.4,2967.3,1.47321094]
[1764116491415,0.09659108,2967.4,2967.3,0.6048]
[1764116492420,0.09659108,2967.4,2967.3,1.47269303]
[1764116494118,0.68809108,2967.4,2967.3,0.6048]
[1764116494418,0.68809108,2967.4,2967.0,0.36393905]
[1764116494613,0.68809108,2967.4,2967.1,0.86873749]
[1764116494815,0.5915,2967.3,2967.2,0.86873749]
[1764116495020,0.68391928,2967.3,2967.2,1.47353749]
[1764116495917,0.09241928,2967.3,2967.2,1.47353749]
[1764116497122,0.68391928,2967.3,2967.2,1.47353749]
[1764116498420,0.09241928,2967.3,2967.2,1.47353749]
[1764116498718,0.5956718,2967.4,2967.3,0.46617108]
[1764116498918,0.5956718,2967.4,2967.3,1.33490857]
[1764116501624,0.0041718,2967.4,2967.3,1.33490857]
[1764116503223,0.0041718,2967.4,2967.3,2.54868363]
[1764116504111,0.0041718,2967.4,2967.3,3.75264913]
[1764116504320,0.00505093,2967.8,2967.7,0.553]
[1764116504514,0.00505093,2967.8,2967.7,1.42173749]
[1764116505322,0.00928711,2967.8,2967.7,2.63551255]
[1764116506320,12.139,2968.9,2968.1,0.553]
[1764116506535,12.139,2968.9,2968.1,2.63551255]
[1764116507035,12.733,2968.9,2968.8,0.553]
[1764116507330,12.737081,2968.9,2968.8,0.553]
[1764116508032,0.594,2968.7,2968.6,0.55805093]
[1764116508232,0.594,2968.7,2968.6,0.87652465]
[1764116508431,0.594,2968.7,2968.6,1.42952465]
[1764116508632,0.594,2968.7,2968.6,0.87652465]
[1764116509229,0.594,2968.7,2968.6,0.00505093]
[1764116509825,0.7625,2968.7,2968.6,0.00505093]
[1764116513342,0.1685,2968.7,2968.6,0.55805093]
[1764116513538,12.143081,2968.9,2968.6,0.55805093]
[1764116513539,0.004081,2968.9,2968.6,0.55805093]
[1764116513840,0.598081,2968.9,2968.8,0.553]
[1764116515542,0.594,2968.7,2968.6,0.00505093]
[1764116515749,0.594,2968.7,2968.6,0.8745923]
[1764116516339,0.594,2968.7,2968.6,1.4275923]
[1764116516644,0.594,2968.7,2968.6,0.55805093]
[1764116517944,0.172571,2968.9,2968.8,0.553]
[1764116518137,0.598081,2968.9,2968.6,0.00505093]
[1764116518335,0.594,2968.7,2968.6,0.00505093]
[1764116519048,0.594,2968.7,2968.6,0.55805093]
[1764116520043,0.766571,2968.9,2968.8,0.553]
[1764116520642,0.766571,2968.9,2968.6,0.00505093]
[1764116520848,0.4907,2968.7,2968.6,0.47945093]
[1764116521150,0.663271,2968.9,2968.8,0.4744]
[1764116521645,0.4907,2968.7,2968.6,0.00505093]
[1764116521846,0.172571,2968.9,2968.6,0.00505093]
[1764116521847,0.004081,2968.9,2968.8,0.4744]
[1764116522245,0.494781,2968.9,2968.8,1.34333291]
[1764116523745,0.494781,2968.9,2968.8,0.4744]
[1764116523946,0.004081,2968.9,2968.8,1.34297871]
[1764116524746,0.00505093,2969.1,2969.0,0.7815]
[1764116524951,0.00505093,2969.1,2969.0,1.65007871]
[1764116525756,0.00849255,2969.1,2969.0,1.65007871]
[1764116526751,0.49919255,2969.1,2969.0,0.86857871]
[1764116526955,0.2845,2969.0,2968.6,0.47945093]
[1764116527144,0.00849255,2969.1,2969.0,0.7815]
[1764116527346,0.00849255,2969.1,2969.0,1.64956651]
[1764116529952,0.49919255,2969.1,2969.0,1.34246651]
[1764116531155,0.49919255,2969.1,2969.0,1.64956651]
[1764116531352,0.00849255,2969.1,2969.0,1.64956651]
[1764116531951,0.49909255,2969.1,2969.0,1.34246651]
[1764116532655,0.00849255,2969.1,2969.0,1.61566651]
[1764116533650,0.49909255,2969.1,2969.0,0.86806651]
[1764116533849,0.2981,2969.0,2968.6,0.00505093]
[1764116534056,0.4906,2968.8,2968.7,1.35636859]
[1764116534649,0.00849255,2969.1,2968.9,0.487]
[1764116534862,0.00849255,2969.1,2969.0,1.62956859]
[1764116537062,0.49909255,2969.1,2969.0,1.35636859]
[1764116537360,0.00849255,2969.1,2969.0,1.62956859]
[1764116538161,0.49909255,2969.1,2969.0,0.86936859]
[1764116539360,0.49909255,2969.1,2968.6,0.00505093]
[1764116539659,0.00849255,2969.1,2969.0,0.487]
[1764116539861,0.00849255,2969.1,2969.0,1.35743603]
[1764116540051,0.00849255,2969.1,2969.0,1.65153603]
[1764116542059,0.00849255,2969.1,2969.0,2.55663596]
[1764116545263,0.16842,2970.2,2969.0,1.65153603]
[1764116545456,0.16842,2970.2,2969.2,0.90539715]
[1764116545656,0.16842,2970.2,2969.3,0.87043603]
[1764116545958,0.16842,2970.2,2969.5,0.2941]
[1764116546154,0.00744678,2970.0,2969.9,0.4593]
[1764116546368,0.2778,2972.0,2970.0,0.2941]
[1764116546369,0.2778,2971.0,2970.0,0.2941]
[1764116546564,0.2778,2971.0,2970.1,0.86997749]
[1764116546565,0.4504,2970.2,2970.1,0.86997749]
[1764116546858,0.4504,2970.2,2969.5,0.2973841]
[1764116547058,0.4504,2970.2,2969.6,1.77522586]
[1764116547364,0.45943701,2970.2,2969.7,0.8707114]
[1764116547666,0.45943701,2970.2,2969.8,0.8707114]
[1764116547958,0.00903701,2970.2,2970.1,0.4593]
[1764116548155,0.00903701,2970.2,2970.1,1.3300114]
[1764116550366,0.45943701,2970.2,2970.1,1.3300114]
[1764116550569,0.00903701,2970.2,2970.1,1.3300114]
[1764116551061,0.45943701,2970.2,2970.1,1.3300114]
[1764116551462,0.00903701,2970.2,2970.1,1.3300114]
[1764116552365,1.6214,2970.9,2970.8,0.4593]
[1764116552568,0.16837,2971.1,2971.0,0.7534]
[1764116552769,0.2778,2971.0,2970.5,0.2941]
[1764116552960,0.4504,2970.7,2970.6,0.86883908]
[1764116553165,0.4504,2970.7,2970.6,1.32813908]
[1764116553562,0.45292542,2970.7,2970.6,1.32813908]
[1764116553764,0.00252542,2970.7,2970.6,1.32813908]
[1764116554769,0.45292542,2970.7,2970.6,1.32813908]
[1764116554973,0.45292542,2970.7,2970.6,0.4593]
[1764116556469,0.45292542,2970.7,2970.0,0.2941]
[1764116556673,0.00252542,2970.7,2970.6,0.4593]
[1764116558568,0.45292542,2970.7,2970.0,0.2941]
[1764116558771,0.45292542,2970.7,2970.6,0.4593]
[1764116559579,0.45292542,2970.7,2970.0,0.2941]
[1764116559873,0.00252542,2970.7,2970.1,1.32683959]
[1764116560168,0.00252542,2970.7,2970.2,0.86753959]
[1764116560375,0.00252542,2970.7,2970.0,0.2941]